bitfinex/quotes_SOLUSD_20220105
["timestamp","ask_amount","ask_price","bid_price","bid_amount"]
[1641343081617,35.03303665,168.5,168.4,24.7419]
[1641343082241,36.48154451,168.5,168.4,24.7419]
[1641343082741,36.48154451,168.5,168.37,2.26638321]
[1641343082941,22.7079,168.49,168.37,2.26638321]
[1641343083142,8.52,168.48,168.37,2.26638321]
[1641343083345,9.02,168.48,168.37,2.26638321]
[1641343083645,9.28,168.48,168.37,2.26638321]
[1641343083843,10.5901,168.48,168.37,2.52638321]
[1641343085644,10.5901,168.48,168.37,2.26638321]
[1641343086245,12.03860786,168.48,168.37,2.26638321]
[1641343087045,10.5901,168.48,168.37,2.52638321]
[1641343087250,12.03860786,168.48,168.37,2.52638321]
[1641343087546,10.5901,168.48,168.37,2.52638321]
[1641343087747,10.5901,168.48,168.37,2.26638321]
[1641343087945,12.03860786,168.48,168.37,2.26638321]
[1641343093450,10.5901,168.48,168.37,2.26638321]
[1641343093650,10.5901,168.48,168.37,2.52638321]
[1641343094149,10.5901,168.48,168.38,1.2932]
[1641343094551,10.5901,168.48,168.38,1.5532]
[1641343098354,10.3301,168.48,168.38,1.5532]
[1641343099756,10.3301,168.48,168.38,2.0532]
[1641343101159,9.02,168.48,168.38,2.0532]
[1641343104463,8.52,168.48,168.38,2.0532]
[1641343105864,9.02,168.48,168.38,1.5532]
[1641343106266,9.02,168.48,168.38,1.2932]
[1641343107566,9.02,168.48,168.38,1.5532]
[1641343115502,9.02,168.48,168.38,2.0532]
[1641343115698,9.02,168.48,168.38,1.5532]
[1641343117602,8.52,168.48,168.38,1.5532]
[1641343118007,24.48883665,168.5,168.38,2.0532]
[1641343118602,24.98883665,168.5,168.38,2.0532]
[1641343118802,24.48883665,168.5,168.38,2.0532]
[1641343119003,24.98883665,168.5,168.38,2.0532]
[1641343121007,24.98883665,168.5,168.4,2.58059097]
[1641343121209,0.5,168.5,168.4,2.58059097]
[1641343121406,32.2974,168.55,168.41,1.44850786]
[1641343121407,25.0528,168.55,168.41,1.44850786]
[1641343121608,25.0528,168.55,168.41,102.70400786]
[1641343121808,25.5528,168.55,168.41,103.20400786]
[1641343122008,0.5,168.55,168.42,1.44850786]
[1641343122211,27.68121798,168.54,168.42,28.48234348]
[1641343122410,28.18121798,168.54,168.42,29.24234348]
[1641343122607,27.68121798,168.54,168.43,1.44850786]
[1641343122807,27.68121798,168.54,168.44,2.90130226]
[1641343123007,27.68121798,168.54,168.44,4.51940226]
[1641343123208,27.68121798,168.54,168.44,5.01940226]
[1641343123410,33.5979,168.57,168.45,22.6393]
[1641343123411,9.8365,168.57,168.45,22.6393]
[1641343123610,1.3165,168.57,168.45,24.34780786]
[1641343123811,1.3165,168.57,168.45,24.84780786]
[1641343124111,1.3165,168.57,168.45,23.3993]
[1641343124318,1.8165,168.57,168.45,23.3993]
[1641343124512,27.64471338,168.57,168.45,23.3993]
[1641343124910,27.64471338,168.57,168.46,1.3672]
[1641343125113,27.64471338,168.57,168.47,2.17864724]
[1641343125520,27.64471338,168.57,168.47,2.93864724]
[1641343126742,28.14471338,168.57,168.47,2.93864724]
[1641343128216,27.64471338,168.57,168.47,2.93864724]
[1641343128417,28.14471338,168.57,168.47,2.93864724]
[1641343128617,28.14471338,168.57,168.46,1.3672]
[1641343128817,8.52,168.56,168.42,28.33613562]
[1641343129020,8.78,168.56,168.42,29.64103562]
[1641343129222,10.72850786,168.56,168.42,27.03383562]
[1641343129421,10.72850786,168.56,168.4,22.8313]
[1641343129620,1.3469,168.55,168.42,2.93143663]
[1641343129823,8.52,168.54,168.42,2.93143663]
[1641343130220,9.02,168.54,168.42,58.66334646]
[1641343130519,9.02,168.54,168.42,58.92334646]
[1641343130921,9.02,168.54,168.43,1.3439]
[1641343130922,1.2526,168.53,168.43,1.3439]
[1641343131122,9.7726,168.53,168.43,1.6039]
[1641343131321,10.2726,168.53,168.43,1.6039]
[1641343132124,1.7526,168.53,168.43,1.6039]
[1641343132325,0.5,168.53,168.43,1.6039]
[1641343132523,85.5458,168.56,168.43,1.6039]
[1641343132524,86.0458,168.56,168.43,1.6039]
[1641343133123,86.0458,168.56,168.43,2.1039]
[1641343133723,85.5458,168.56,168.43,2.1039]
[1641343133923,86.0458,168.56,168.43,2.1039]
[1641343134124,9.02,168.56,168.43,2.1039]
[1641343134730,8.52,168.56,168.43,2.1039]
[1641343134931,9.02,168.56,168.43,2.1039]
[1641343135129,0.5,168.56,168.43,2.1039]
[1641343135529,28.09321338,168.57,168.43,2.1039]
[1641343136329,28.09321338,168.57,168.43,3.55240786]
[1641343136530,28.09321338,168.57,168.43,1.8439]
[1641343137329,28.35321338,168.57,168.43,1.8439]
[1641343137531,8.52,168.56,168.43,1.3439]
[1641343137730,9.96850786,168.56,168.43,1.3439]
[1641343137933,10.72850786,168.56,168.43,1.3439]
[1641343138431,1.2429,168.55,168.43,1.3439]
[1641343138630,8.52,168.54,168.43,1.3439]
[1641343139032,9.28,168.54,168.43,1.3439]
[1641343139633,9.28,168.54,168.43,1.6039]
[1641343139834,9.28,168.54,168.43,1.3439]
[1641343141637,9.28,168.54,168.43,1.6039]
[1641343144857,1.2447,168.53,168.43,1.6039]
[1641343145057,9.7647,168.53,168.43,1.6039]
[1641343145260,10.2647,168.53,168.43,1.6039]
[1641343146858,10.2647,168.53,168.43,0.26]
[1641343147058,10.2647,168.53,168.42,27.99353663]
[1641343147358,10.2647,168.53,168.42,29.29303663]
[1641343150067,9.02,168.53,168.42,29.29303663]
[1641343150268,9.02,168.53,168.42,29.79303663]
[1641343150469,8.52,168.53,168.42,29.79303663]
[1641343151670,9.02,168.53,168.42,29.79303663]
[1641343153670,8.52,168.53,168.42,29.79303663]
[1641343153873,9.02,168.53,168.42,29.79303663]
[1641343154271,8.52,168.53,168.42,29.79303663]
[1641343154673,9.02,168.53,168.42,29.79303663]
[1641343155275,9.8558,168.59,168.42,39.76154449]
[1641343155473,8.52,168.62,168.47,0.31739849]
[1641343155682,8.52,168.62,168.48,2.39016913]
[1641343155875,8.52,168.62,168.49,23.6047]
[1641343156075,8.52,168.62,168.49,25.31320786]
[1641343156282,31.44199804,168.61,168.5,28.67715732]
[1641343156478,31.44199804,168.61,168.5,32.14726518]
[1641343156878,31.94199804,168.61,168.5,32.14726518]
[1641343157277,0.5,168.61,168.5,30.69875732]
[1641343157477,0.5,168.61,168.51,24.7546]
[1641343157679,8.52,168.64,168.51,30.2926]
[1641343157680,9.02,168.64,168.51,30.2926]
[1641343157878,9.02,168.64,168.51,31.0526]
[1641343158280,37.25915181,168.64,168.51,31.0526]
[1641343159884,37.25915181,168.64,168.51,29.0526]
[1641343164785,37.25915181,168.64,168.52,1.2483]
[1641343164984,37.25915181,168.64,168.52,2.0083]
[1641343167887,28.73915181,168.64,168.52,2.0083]
[1641343169014,28.73915181,168.64,168.52,3.45680786]
[1641343170820,28.73915181,168.64,168.51,22.7546]
[1641343171017,37.51915181,168.64,168.49,1.44850786]
[1641343171216,37.51915181,168.64,168.48,2.39016913]
[1641343171217,2.80220786,168.63,168.48,2.39016913]
[1641343171417,8.52,168.62,168.48,2.39016913]
[1641343171617,8.78,168.62,168.48,2.39016913]
[1641343171817,9.28,168.62,168.48,2.39016913]
[1641343172520,9.28,168.62,168.48,2.65016913]
[1641343172717,1.44850786,168.61,168.48,2.65016913]
[1641343172919,8.52,168.6,168.48,2.65016913]
[1641343173119,8.78,168.6,168.48,2.65016913]
[1641343173321,9.02,168.6,168.48,2.65016913]
[1641343174320,9.28,168.6,168.48,2.65016913]
[1641343174722,9.28,168.6,168.48,2.39016913]
[1641343175121,10.72850786,168.6,168.48,2.39016913]
[1641343176121,10.72850786,168.6,168.48,2.65016913]
[1641343176623,9.28,168.6,168.48,2.65016913]
[1641343177724,19.63430786,168.6,168.46,103.3533]
[1641343178530,19.63430786,168.6,168.46,105.89572625]
[1641343178926,19.63430786,168.6,168.46,106.15572625]
[1641343181727,19.63430786,168.6,168.46,82.56782625]
[1641343182128,8.9064,168.59,168.46,80.0254]
[1641343182329,26.21543924,168.57,168.46,80.0254]
[1641343182627,8.52,168.56,168.46,80.0254]
[1641343182827,8.52,168.56,168.46,0.26]
[1641343183029,10.5627,168.56,168.41,26.34934558]
[1641343183229,10.5627,168.56,168.42,2.70424595]
[1641343183632,10.5627,168.56,168.42,2.96424595]
[1641343184430,12.01120786,168.56,168.42,2.70424595]
[1641343185730,12.01120786,168.56,168.42,2.96424595]
[1641343185929,8.9084,168.55,168.42,2.96424595]
[1641343186134,8.52,168.54,168.39,79.6241]
[1641343186430,10.46850786,168.54,168.39,79.6241]
[1641343186630,1.44850786,168.53,168.39,79.6241]
[1641343186831,8.52,168.52,168.39,79.6241]
[1641343187031,8.78,168.52,168.39,79.6241]
[1641343187231,10.72850786,168.52,168.4,2.93431679]
[1641343187432,9.28,168.52,168.4,2.93431679]
[1641343187731,9.28,168.52,168.4,3.19431679]
[1641343187932,10.72850786,168.52,168.4,3.19431679]
[1641343188131,9.28,168.52,168.4,3.19431679]
[1641343188332,9.02,168.52,168.4,3.19431679]
[1641343190137,9.02,168.52,168.41,1.3644]
[1641343190635,9.02,168.52,168.41,1.6244]
[1641343191338,9.02,168.52,168.41,25.4114]
[1641343193335,9.02,168.52,168.41,25.1514]
[1641343194636,9.02,168.52,168.41,25.4114]
[1641343196741,9.02,168.52,168.41,25.9114]
[1641343196943,9.02,168.52,168.41,25.4114]
[1641343197943,9.02,168.52,168.41,25.9114]
[1641343198144,9.02,168.52,168.41,25.4114]
[1641343198544,0.5,168.52,168.41,25.4114]
[1641343198945,78.6498,168.54,168.41,25.4114]
[1641343199744,78.6498,168.54,168.41,25.9114]
[1641343202748,78.6498,168.54,168.41,30.4914]
[1641343202953,78.1498,168.54,168.41,39.0114]
[1641343203154,76.8669,168.54,168.41,39.0114]
[1641343203454,1.302,168.56,168.41,39.0114]
[1641343203854,1.802,168.56,168.41,34.4314]
[1641343204857,1.3532,168.55,168.41,34.4314]
[1641343205255,1.8532,168.55,168.41,34.4314]
[1641343205455,1.8532,168.55,168.41,25.6514]
[1641343205659,8.52,168.54,168.41,25.6514]
[1641343205857,9.02,168.54,168.41,25.1514]
[1641343206058,9.28,168.54,168.41,25.1514]
[1641343206657,1.2587,168.53,168.41,25.1514]
[1641343206859,1.7587,168.53,168.41,25.1514]
[1641343207862,1.7587,168.53,168.41,25.4114]
[1641343210087,1.7587,168.53,168.41,25.9114]
[1641343211888,1.7587,168.53,168.41,25.6514]
[1641343212089,10.2787,168.53,168.41,25.1514]
[1641343212288,10.5387,168.53,168.41,23.787]
[1641343213090,10.5387,168.53,168.41,0.26]
[1641343213390,10.5387,168.53,168.4,3.19431679]
[1641343213690,10.5387,168.53,168.4,27.39761679]
[1641343215092,10.2787,168.53,168.4,27.39761679]
[1641343215392,10.2787,168.53,168.4,28.68591679]
[1641343216992,10.5387,168.53,168.4,28.68591679]
[1641343217795,10.5387,168.53,168.4,25.4916]
[1641343217995,1.44850786,168.52,168.32,8.52]
[1641343218195,1.44850786,168.52,168.33,22.9132]
[1641343218196,8.52,168.51,168.33,22.9132]
[1641343218396,9.02,168.51,168.33,22.9132]
[1641343218597,1.44850786,168.5,168.33,22.9132]
[1641343218899,8.52,168.49,168.34,2.72545699]
[1641343219097,25.39943616,168.48,168.34,26.61743302]
[1641343219300,8.52,168.47,168.35,24.0503]
[1641343219701,10.72850786,168.47,168.35,24.0503]
[1641343220604,1.2386,168.46,168.35,24.0503]
[1641343221002,1.9986,168.46,168.35,24.0503]
[1641343221499,8.52,168.45,168.35,24.3103]
[1641343221900,9.02,168.45,168.35,24.3103]
[1641343223199,9.02,168.45,168.35,25.5725]
[1641343225604,0.5,168.45,168.35,25.5725]
[1641343226004,1.7386,168.46,168.35,25.5725]
[1641343226203,1.2386,168.46,168.35,25.5725]
[1641343226403,1.7386,168.46,168.35,25.5725]
[1641343227405,0.5,168.46,168.35,26.0725]
[1641343227804,25.89943616,168.48,168.35,26.0725]
[1641343228031,27.26173616,168.48,168.35,26.0725]
[1641343232211,35.78173616,168.48,168.35,25.8125]
[1641343232612,36.04173616,168.48,168.35,25.3125]
[1641343232813,37.49024402,168.48,168.35,25.3125]
[1641343233212,36.04173616,168.48,168.35,25.3125]
[1641343233813,37.49024402,168.48,168.35,25.3125]
[1641343237038,36.99024402,168.48,168.35,25.3125]
[1641343237436,35.54173616,168.48,168.35,25.3125]
[1641343237639,35.54173616,168.48,168.35,25.5725]
[1641343238437,36.04173616,168.48,168.35,25.5725]
[1641343241540,36.04173616,168.48,168.35,25.3125]
[1641343241942,1.44850786,168.47,168.35,25.3125]
[1641343242141,8.52,168.46,168.35,25.3125]
[1641343242342,9.02,168.46,168.35,25.3125]
[1641343242542,9.28,168.46,168.35,25.3125]
[1641343242943,10.3086,168.46,168.35,25.5725]
[1641343254063,25.39943616,168.48,168.36,1.44850786]
[1641343254300,8.52,168.51,168.36,1.44850786]
[1641343254467,8.52,168.51,168.36,75.12230786]
[1641343254764,8.52,168.51,168.37,1.2447]
[1641343254964,8.52,168.51,168.37,1.5047]
[1641343255167,8.52,168.51,168.37,25.4637]
[1641343255365,8.52,168.51,168.38,1.44850786]
[1641343255573,9.02,168.51,168.39,23.5921023]
[1641343255766,9.02,168.51,168.41,2.23834093]
[1641343256065,0.5,168.51,168.41,3.73664093]
[1641343256266,0.5,168.51,168.42,24.5347]
[1641343256466,1.806,168.53,168.42,24.5347]
[1641343256766,1.806,168.53,168.42,24.7947]
[1641343256965,27.85480187,168.53,168.42,24.7947]
[1641343257364,27.35480187,168.53,168.42,25.2947]
[1641343257567,26.04880187,168.53,168.43,1.2362]
[1641343257965,26.54880187,168.53,168.43,1.4962]
[1641343258167,35.06880187,168.53,168.43,1.4962]
[1641343258766,36.35220187,168.53,168.43,1.4962]
[1641343259770,35.85220187,168.53,168.43,1.4962]
[1641343260169,36.35220187,168.53,168.43,1.4962]
[1641343260771,36.35220187,168.53,168.43,1.9962]
[1641343260969,36.35220187,168.53,168.43,1.4962]
[1641343261169,36.35220187,168.53,168.43,1.9962]
[1641343261570,36.35220187,168.53,168.43,1.4962]
[1641343262674,35.85220187,168.53,168.43,1.4962]
[1641343263480,35.85220187,168.53,168.43,1.9962]
[1641343264382,34.56880187,168.53,168.43,1.9962]
[1641343270203,34.56880187,168.53,168.43,1.4962]
[1641343270407,35.06880187,168.53,168.41,2.23834093]
[1641343270604,35.32880187,168.53,168.41,2.23834093]
[1641343270804,35.32880187,168.53,168.37,24.9388]
[1641343271004,22.9907,168.52,168.37,24.9388]
[1641343271206,8.52,168.51,168.37,24.9388]
[1641343271403,1.2958,168.5,168.37,24.9388]
[1641343271604,8.52,168.49,168.37,24.9388]
[1641343272007,9.28,168.49,168.37,25.1988]
[1641343274507,9.28,168.49,168.37,23.9352]
[1641343279209,10.72850786,168.49,168.37,23.9352]
[1641343283920,117.16850786,168.49,168.34,1.3295]
[1641343284116,106.44,168.46,168.28,1.2925]
[1641343284318,8.52,168.45,168.28,1.2925]
[1641343284517,10.22850786,168.45,168.28,1.2925]
[1641343284719,10.72850786,168.45,168.28,1.2925]
[1641343284919,23.78133296,168.44,168.33,2.44524497]
[1641343285118,8.52,168.43,168.33,2.44524497]
[1641343285319,8.52,168.43,168.33,2.70524497]
[1641343285518,9.02,168.43,168.33,2.70524497]
[1641343286219,9.02,168.43,168.33,25.71574497]
[1641343290728,9.02,168.43,168.33,26.21574497]
[1641343290928,9.02,168.43,168.33,25.71574497]
[1641343291328,8.52,168.43,168.33,26.21574497]
[1641343300372,9.02,168.43,168.33,26.21574497]
[1641343302678,9.02,168.43,168.33,25.95574497]
[1641343303979,9.02,168.43,168.33,26.21574497]
[1641343304977,9.02,168.43,168.33,25.71574497]
[1641343305378,9.02,168.43,168.33,26.21574497]
[1641343305783,9.02,168.43,168.33,25.71574497]
[1641343306079,9.02,168.43,168.33,26.21574497]
[1641343306281,9.02,168.43,168.33,25.71574497]
[1641343306680,9.02,168.43,168.33,26.21574497]
[1641343306979,9.02,168.43,168.33,25.71574497]
[1641343308883,9.02,168.43,168.33,26.21574497]
[1641343311785,9.02,168.43,168.33,23.0105]
[1641343311987,9.28,168.43,168.33,23.0105]
[1641343312989,9.28,168.43,168.34,2.71763519]
[1641343313186,9.02,168.43,168.34,2.71763519]
[1641343313888,9.02,168.43,168.34,4.08503519]
[1641343314388,9.02,168.43,168.34,4.34503519]
[1641343314791,9.02,168.43,168.35,31.69586719]
[1641343314992,9.02,168.43,168.35,31.95586719]
[1641343316890,9.02,168.43,168.35,0.26]
[1641343317090,9.02,168.43,168.34,4.34503519]
[1641343333934,0.5,168.43,168.34,4.34503519]
[1641343334234,32.7359,168.46,168.35,23.4439]
[1641343334437,33.2359,168.46,168.35,23.4439]
[1641343334635,33.2359,168.46,168.35,23.7039]
[1641343335235,33.2359,168.46,168.36,1.2374]
[1641343335436,10.3182,168.46,168.36,1.2374]
[1641343335644,10.3182,168.46,168.36,1.4974]
[1641343337735,9.02,168.46,168.36,1.4974]
[1641343338336,10.3086,168.46,168.36,1.2374]
[1641343338540,10.5686,168.46,168.36,1.2374]
[1641343339537,10.5686,168.46,168.36,1.4974]
[1641343340644,33.2199,168.46,168.36,1.4974]
[1641343342641,32.9599,168.46,168.36,1.4974]
[1641343343440,33.2199,168.46,168.36,1.4974]
[1641343343640,32.9599,168.46,168.36,1.4974]
[1641343343840,33.2199,168.46,168.36,1.4974]
[1641343345543,32.9599,168.46,168.36,0.26]
[1641343345743,33.2199,168.46,168.36,0.26]
[1641343345943,33.2199,168.46,168.34,2.97763519]
[1641343346143,34.66840786,168.46,168.34,2.97763519]
[1641343348249,33.2199,168.46,168.34,2.97763519]
[1641343349351,34.66840786,168.46,168.34,2.97763519]
[1641343351656,32.9599,168.46,168.34,2.97763519]
[1641343351863,33.2199,168.46,168.34,2.97763519]
[1641343352454,33.2199,168.46,168.35,24.3906]
[1641343352853,33.2199,168.46,168.35,24.6506]
[1641343353657,32.9599,168.46,168.35,24.6506]
[1641343353856,33.2199,168.46,168.35,24.6506]
[1641343354456,32.9599,168.46,168.35,24.6506]
[1641343354656,33.2199,168.46,168.35,24.6506]
[1641343354858,32.9599,168.46,168.35,24.6506]
[1641343355057,33.2199,168.46,168.35,24.6506]
[1641343364085,32.9599,168.46,168.35,24.3906]
[1641343364288,33.2199,168.46,168.35,24.3906]
[1641343365589,33.2199,168.46,168.35,25.1506]
[1641343379402,32.9599,168.46,168.35,25.1506]
[1641343379606,33.2199,168.46,168.35,25.1506]
[1641343379804,32.9599,168.46,168.35,25.1506]
[1641343380005,33.2199,168.46,168.35,25.1506]
[1641343381943,32.9599,168.46,168.35,25.1506]
[1641343385647,32.9599,168.46,168.35,24.8906]
[1641343385847,33.2199,168.46,168.35,24.8906]
[1641343386246,32.9599,168.46,168.35,24.8906]
[1641343386447,33.2199,168.46,168.35,24.8906]
[1641343387048,33.2199,168.46,168.35,25.1506]
[1641343390352,32.9599,168.46,168.35,25.1506]
[1641343391355,9.02,168.46,168.35,25.1506]
[1641343391556,26.0237935,168.47,168.35,26.59910786]
[1641343391753,1.3214,168.49,168.35,37.01198671]
[1641343391954,8.52,168.51,168.35,37.01198671]
[1641343392354,9.02,168.51,168.35,37.01198671]
[1641343392854,28.82226119,168.5,168.35,37.01198671]
[1641343394556,30.06596119,168.5,168.35,37.01198671]
[1641343397359,8.52,168.49,168.35,35.56347885]
[1641343397561,31.5308,168.49,168.35,37.01198671]
[1641343397759,32.0308,168.49,168.35,37.01198671]
[1641343398258,8.78,168.49,168.35,37.01198671]
[1641343398859,9.28,168.49,168.35,37.01198671]
[1641343399061,31.9254,168.49,168.35,37.01198671]
[1641343399260,32.1854,168.49,168.35,37.01198671]
[1641343401365,31.9254,168.49,168.35,37.01198671]
[1641343401663,32.1854,168.49,168.35,37.01198671]
[1641343402862,31.9254,168.49,168.35,37.01198671]
[1641343404062,9.02,168.49,168.35,37.01198671]
[1641343404463,8.52,168.49,168.35,37.01198671]
[1641343409498,1.2724,168.48,168.35,37.01198671]
[1641343417104,1.2724,168.48,168.35,36.75198671]
[1641343417304,8.52,168.47,168.35,26.33910786]
[1641343417505,8.78,168.47,168.35,26.33910786]
[1641343417705,9.28,168.47,168.35,26.33910786]
[1641343418105,22.6147,168.46,168.35,26.33910786]
[1641343418509,23.1147,168.46,168.35,26.59910786]
[1641343418806,1.2607,168.45,168.35,26.59910786]
[1641343423309,1.2607,168.45,168.35,26.33910786]
[1641343424510,1.2607,168.45,168.35,26.59910786]
[1641343425812,1.7607,168.45,168.35,26.59910786]
[1641343426011,1.2607,168.45,168.35,26.59910786]
[1641343435126,1.2607,168.45,168.35,26.33910786]
[1641343435327,2.0207,168.45,168.35,24.3906]
[1641343435526,8.52,168.44,168.3,1.44850786]
[1641343435726,8.52,168.44,168.31,1.3004]
[1641343435727,23.7903,168.43,168.31,1.3004]
[1641343435928,8.52,168.42,168.31,1.3004]
[1641343436326,24.82975508,168.41,168.29,23.5906]
[1641343436527,23.9542,168.4,168.3,2.23791414]
[1641343436929,24.7142,168.4,168.3,2.99791414]
[1641343437129,1.3603,168.39,168.3,2.99791414]
[1641343437931,1.8603,168.39,168.3,2.99791414]
[1641343441532,1.8603,168.39,168.3,2.73791414]
[1641343443053,1.3603,168.39,168.3,2.99791414]
[1641343443453,1.8603,168.39,168.3,2.99791414]
[1641343443653,1.8603,168.39,168.3,4.29301414]
[1641343444254,1.8603,168.39,168.31,22.6424]
[1641343444454,1.3603,168.39,168.31,23.1424]
[1641343444654,1.3603,168.39,168.31,23.4024]
[1641343444956,23.9542,168.4,168.31,24.85090786]
[1641343445554,24.82975508,168.41,168.31,24.85090786]
[1641343445954,25.32975508,168.41,168.31,24.35090786]
[1641343446155,25.32975508,168.41,168.31,22.9024]
[1641343447558,25.58975508,168.41,168.31,22.9024]
[1641343450160,25.32975508,168.41,168.31,22.9024]
[1641343450658,24.82975508,168.41,168.31,22.9024]
[1641343450859,25.32975508,168.41,168.31,22.9024]
[1641343451259,25.32975508,168.41,168.31,23.4024]
[1641343451757,25.32975508,168.41,168.31,22.9024]
[1641343453160,25.32975508,168.41,168.31,23.4024]
[1641343455463,25.32975508,168.41,168.31,22.9024]
[1641343458163,25.32975508,168.41,168.32,1.3508]
[1641343458663,25.32975508,168.41,168.32,1.6108]
[1641343469890,25.32975508,168.41,168.32,8.1028]
[1641343470084,24.82975508,168.41,168.32,10.05130786]
[1641343470486,24.82975508,168.41,168.33,23.7658]
[1641343470884,24.82975508,168.41,168.34,1.44850786]
[1641343471084,24.82975508,168.41,168.34,1.70850786]
[1641343471284,24.82975508,168.41,168.34,2.20850786]
[1641343471487,24.82975508,168.41,168.35,1.44850786]
[1641343471685,24.82975508,168.41,168.36,2.98715491]
[1641343472085,24.82975508,168.41,168.36,3.24715491]
[1641343474185,24.82975508,168.41,168.36,0.26]
[1641343474386,24.82975508,168.41,168.34,1.5749]
[1641343475189,24.82975508,168.41,168.34,4.5684185]
[1641343477390,24.82975508,168.41,168.34,5.0684185]
[1641343478391,24.82975508,168.41,168.34,6.51692636]
[1641343480892,24.82975508,168.41,168.34,5.0684185]
[1641343483492,24.82975508,168.41,168.34,4.8084185]
[1641343484896,24.82975508,168.41,168.34,5.0684185]
[1641343490205,24.82975508,168.41,168.34,2.0749]
[1641343490406,24.82975508,168.41,168.34,1.8149]
[1641343490640,24.82975508,168.41,168.34,1.3149]
[1641343491830,24.82975508,168.41,168.34,1.5749]
[1641343492230,33.34975508,168.41,168.28,11.86138671]
[1641343492433,22.7121,168.4,168.28,26.02410786]
[1641343492630,9.7761,168.39,168.26,23.1252]
[1641343492829,9.7761,168.39,168.25,92.7]
[1641343492830,10.2761,168.39,168.25,92.7]
[1641343493030,10.5361,168.39,168.25,92.7]
[1641343493230,10.2761,168.39,168.26,2.44525674]
[1641343493634,10.5361,168.39,168.26,2.44525674]
[1641343494033,10.5361,168.39,168.26,2.70525674]
[1641343494632,10.2761,168.39,168.26,2.70525674]
[1641343494832,10.2761,168.39,168.26,26.68105674]
[1641343496034,10.2761,168.39,168.26,102.87045674]
[1641343496636,10.5361,168.39,168.26,27.99195674]
[1641343496838,10.5361,168.39,168.26,27.73195674]
[1641343497037,10.5361,168.39,168.26,26.42105674]
[1641343497238,10.5361,168.39,168.26,2.44525674]
[1641343497438,10.5361,168.39,168.25,92.7]
[1641343497836,10.5361,168.39,168.23,24.6685]
[1641343498037,10.5361,168.39,168.23,23.8315]
[1641343498038,86.3135,168.39,168.23,23.8315]
[1641343498539,86.3135,168.39,168.23,25.82338027]
[1641343499138,87.98287671,168.39,168.23,25.82338027]
[1641343499641,96.89997671,168.39,168.23,25.82338027]
[1641343500746,96.89997671,168.39,168.23,26.08338027]
[1641343500945,109.30731488,168.39,168.23,26.08338027]
[1641343501544,115.6388959,168.39,168.23,26.08338027]
[1641343501748,87.72287671,168.39,168.23,26.08338027]
[1641343502746,86.0535,168.39,168.23,26.08338027]
[1641343502946,86.3135,168.39,168.23,26.08338027]
[1641343503554,86.3135,168.39,168.23,27.41728027]
[1641343505961,87.98287671,168.39,168.23,27.41728027]
[1641343506261,87.98287671,168.39,168.24,1.44850786]
[1641343506661,87.98287671,168.39,168.24,1.70850786]
[1641343506861,86.3135,168.39,168.24,1.70850786]
[1641343507262,86.3135,168.39,168.24,0.26]
[1641343507463,86.3135,168.39,168.23,27.41728027]
[1641343507864,87.98287671,168.39,168.23,27.41728027]
[1641343508768,79.46287671,168.39,168.23,27.41728027]
[1641343508967,79.46287671,168.39,168.24,1.44850786]
[1641343509167,8.52,168.38,168.23,27.41728027]
[1641343509388,9.02,168.38,168.23,27.41728027]
[1641343509587,9.28,168.38,168.23,27.41728027]
[1641343509786,24.9039,168.37,168.23,27.41728027]
[1641343509985,8.52,168.36,168.23,27.41728027]
[1641343510185,23.91481668,168.34,168.23,27.41728027]
[1641343510386,8.52,168.33,168.23,27.41728027]
[1641343510787,9.02,168.33,168.23,28.86578813]
[1641343510990,1.328,168.32,168.23,28.86578813]
[1641343511393,1.828,168.32,168.23,28.86578813]
[1641343513991,1.828,168.32,168.23,27.41728027]
[1641343515092,1.828,168.32,168.24,1.44850786]
[1641343515294,1.828,168.32,168.23,27.41728027]
[1641343515693,1.828,168.32,168.24,1.44850786]